[Event "Late-Titled-Tuesday-Blitz-February-27-2024"]
[Site "Chess.com"]
[Date "2024.02.27"]
[Round "3"]
[White "wqws"]
[Black "NovakRatko"]
[Result "1-0"]
[WhiteElo "2690"]
[BlackElo "2472"]
[TimeControl "180+1"]
[EndTime "14:27:55 PST"]
[Termination "wqws won on time"]

1. e4 {[%clk 0:03:00.9]} 1... d5 {[%clk 0:02:59.2]} 2. exd5 {[%clk 0:02:58.4]}
2... c6 {[%clk 0:02:59.6]} 3. dxc6 {[%clk 0:02:58.3]} 3... Nxc6 {[%clk
0:03:00.5]} 4. Nf3 {[%clk 0:02:56.7]} 4... e5 {[%clk 0:03:00.7]} 5. Nc3 {[%clk
0:02:56.6]} 5... Bd6 {[%clk 0:02:59.9]} 6. Bc4 {[%clk 0:02:44.3]} 6... Nf6
{[%clk 0:02:58.7]} 7. d3 {[%clk 0:02:44.5]} 7... O-O {[%clk 0:02:58.8]} 8. h3
{[%clk 0:02:43.6]} 8... Bf5 {[%clk 0:02:58.2]} 9. O-O {[%clk 0:02:42.7]} 9... h6
{[%clk 0:02:57.3]} 10. Be3 {[%clk 0:02:38.7]} 10... a6 {[%clk 0:02:56.5]} 11.
Nd2 {[%clk 0:02:37]} 11... b5 {[%clk 0:02:49.2]} 12. Bb3 {[%clk 0:02:37]} 12...
Nd4 {[%clk 0:02:36.9]} 13. Nce4 {[%clk 0:02:27]} 13... Nxb3 {[%clk 0:02:35.7]}
14. axb3 {[%clk 0:02:26.7]} 14... Nxe4 {[%clk 0:02:32.4]} 15. Nxe4 {[%clk
0:02:27.6]} 15... Be7 {[%clk 0:02:32.8]} 16. Qh5 {[%clk 0:02:16.1]} 16... Bg6
{[%clk 0:02:31.1]} 17. Qxe5 {[%clk 0:02:15.5]} 17... Re8 {[%clk 0:02:24.4]} 18.
Qg3 {[%clk 0:02:05.8]} 18... Qc8 {[%clk 0:02:15.3]} 19. Rac1 {[%clk 0:02:01.2]}
19... Qc6 {[%clk 0:02:09.2]} 20. Nd2 {[%clk 0:01:46.3]} 20... Rad8 {[%clk
0:01:56.3]} 21. Nf3 {[%clk 0:01:40.7]} 21... Bd6 {[%clk 0:01:54.2]} 22. Bf4
{[%clk 0:01:38.6]} 22... Re6 {[%clk 0:01:53.6]} 23. Nd4 {[%clk 0:01:37.2]} 23...
Qd5 {[%clk 0:00:16.2]} 24. Nxe6 {[%clk 0:01:27]} 24... Qxe6 {[%clk 0:00:17.1]}
25. Rfe1 {[%clk 0:01:26.7]} 25... Bxf4 {[%clk 0:00:14]} 26. Qxf4 {[%clk
0:01:26.5]} 26... Qc6 {[%clk 0:00:13.8]} 27. Qd2 {[%clk 0:01:24.1]} 27... Rd6
{[%clk 0:00:13.9]} 28. Re3 {[%clk 0:01:23.5]} 28... f5 {[%clk 0:00:07.1]} 29.
Re5 {[%clk 0:01:18.5]} 29... f4 {[%clk 0:00:06.5]} 30. Qxf4 {[%clk 0:01:16.4]}
30... Rd7 {[%clk 0:00:01.5]} 31. Qe3 {[%clk 0:01:15.2]} 31... Kh7 {[%clk
0:00:01.8]} 32. d4 {[%clk 0:01:13]} 32... Qd5 {[%clk 0:00:01.5]} 33. Rxd5 {[%clk
0:01:12.7]} 1-0

[Event "Late-Titled-Tuesday-Blitz-February-27-2024"]
[Site "Chess.com"]
[Date "2024.02.27"]
[Round "3"]
[White "ncofre98"]
[Black "SocoLoco"]
[Result "1-0"]
[WhiteElo "2476"]
[BlackElo "2224"]
[TimeControl "180+1"]
[EndTime "14:27:55 PST"]
[Termination "ncofre98 won by checkmate"]

1. e4 {[%clk 0:03:00.9]} 1... c5 {[%clk 0:02:59]} 2. Nf3 {[%clk 0:03:00.7]} 2...
e6 {[%clk 0:02:59.1]} 3. d3 {[%clk 0:03:00.7]} 3... d5 {[%clk 0:02:58.2]} 4.
Nbd2 {[%clk 0:03:00.3]} 4... f5 {[%clk 0:02:57.3]} 5. exd5 {[%clk 0:02:59.6]}
5... exd5 {[%clk 0:02:56.5]} 6. d4 {[%clk 0:02:59.6]} 6... Nf6 {[%clk
0:02:55.6]} 7. Bb5+ {[%clk 0:02:59.3]} 7... Bd7 {[%clk 0:02:54.7]} 8. Bxd7+
{[%clk 0:02:58.2]} 8... Nbxd7 {[%clk 0:02:52.9]} 9. O-O {[%clk 0:02:58.3]} 9...
c4 {[%clk 0:02:38.4]} 10. b3 {[%clk 0:02:46]} 10... cxb3 {[%clk 0:02:24.4]} 11.
axb3 {[%clk 0:02:43]} 11... Be7 {[%clk 0:02:24.2]} 12. c4 {[%clk 0:02:36.3]}
12... O-O {[%clk 0:02:21.5]} 13. c5 {[%clk 0:02:36.1]} 13... Ne4 {[%clk
0:02:14.7]} 14. Bb2 {[%clk 0:02:35.2]} 14... Qc7 {[%clk 0:02:12]} 15. b4 {[%clk
0:02:33.4]} 15... b6 {[%clk 0:02:09.6]} 16. Qb3 {[%clk 0:02:32.8]} 16... Ndf6
{[%clk 0:02:03.1]} 17. Rac1 {[%clk 0:02:07.5]} 17... bxc5 {[%clk 0:02:02]} 18.
dxc5 {[%clk 0:02:07.7]} 18... a6 {[%clk 0:01:50]} 19. Be5 {[%clk 0:02:00.4]}
19... Qc6 {[%clk 0:01:44.2]} 20. Nxe4 {[%clk 0:01:54.8]} 20... fxe4 {[%clk
0:01:38.1]} 21. Nd4 {[%clk 0:01:55.2]} 21... Qb7 {[%clk 0:01:33.2]} 22. Ne6
{[%clk 0:01:35.7]} 22... Rf7 {[%clk 0:01:18.9]} 23. Bxf6 {[%clk 0:01:25.6]}
23... Bxf6 {[%clk 0:01:05.3]} 24. c6 {[%clk 0:01:19.2]} 24... Qb5 {[%clk
0:00:58.7]} 25. Rc5 {[%clk 0:01:17.3]} 25... Qd3 {[%clk 0:00:47.1]} 26. Qxd3
{[%clk 0:01:15.5]} 26... exd3 {[%clk 0:00:47.2]} 27. Rxd5 {[%clk 0:01:14.1]}
27... Rc8 {[%clk 0:00:42.3]} 28. c7 {[%clk 0:01:04.9]} 28... Be7 {[%clk
0:00:25.8]} 29. Rxd3 {[%clk 0:00:59.6]} 29... Rf6 {[%clk 0:00:24.1]} 30. Rd8+
{[%clk 0:00:57.2]} 30... Bxd8 {[%clk 0:00:17.4]} 31. cxd8=Q+ {[%clk 0:00:57.5]}
31... Rxd8 {[%clk 0:00:17.3]} 32. Nxd8 {[%clk 0:00:58.4]} 32... Rb6 {[%clk
0:00:15.7]} 33. Re1 {[%clk 0:00:52.9]} 33... Rxb4 {[%clk 0:00:11]} 34. Re8#
{[%clk 0:00:51.4]} 1-0

[Event "Late-Titled-Tuesday-Blitz-February-27-2024"]
[Site "Chess.com"]
[Date "2024.02.27"]
[Round "3"]
[White "Sajkochess"]
[Black "bipe137"]
[Result "0-1"]
[WhiteElo "2333"]
[BlackElo "2570"]
[TimeControl "180+1"]
[EndTime "14:27:59 PST"]
[Termination "bipe137 won by resignation"]

1. e4 {[%clk 0:03:00.9]} 1... c5 {[%clk 0:03:00.2]} 2. Nf3 {[%clk 0:03:00.7]}
2... e6 {[%clk 0:02:57.1]} 3. d4 {[%clk 0:03:01]} 3... cxd4 {[%clk 0:02:58]} 4.
Nxd4 {[%clk 0:03:01.8]} 4... Nc6 {[%clk 0:02:58.6]} 5. Nc3 {[%clk 0:03:02.4]}
5... Nf6 {[%clk 0:02:59]} 6. g3 {[%clk 0:03:02.3]} 6... Qb6 {[%clk 0:02:55.6]}
7. Nb3 {[%clk 0:03:01.7]} 7... Bb4 {[%clk 0:02:55.7]} 8. Bg2 {[%clk 0:03:01]}
8... Qa6 {[%clk 0:02:56]} 9. Qe2 {[%clk 0:02:57.2]} 9... Qxe2+ {[%clk
0:02:54.6]} 10. Kxe2 {[%clk 0:02:57.6]} 10... O-O {[%clk 0:02:41.5]} 11. Bd2
{[%clk 0:02:49.5]} 11... Ne5 {[%clk 0:02:38.7]} 12. a3 {[%clk 0:02:46.4]} 12...
Be7 {[%clk 0:02:37.3]} 13. Nd1 {[%clk 0:02:27.5]} 13... d5 {[%clk 0:02:34.9]}
14. Bc3 {[%clk 0:02:08.5]} 14... Nc4 {[%clk 0:02:25.8]} 15. e5 {[%clk
0:01:36.1]} 15... Nd7 {[%clk 0:02:23]} 16. f4 {[%clk 0:01:36.3]} 16... b6 {[%clk
0:02:23.3]} 17. Ne3 {[%clk 0:01:35.8]} 17... Ba6 {[%clk 0:02:20.9]} 18. Nxc4
{[%clk 0:01:34.4]} 18... Bxc4+ {[%clk 0:02:14.6]} 19. Ke3 {[%clk 0:01:24.3]}
19... Rac8 {[%clk 0:02:10.5]} 20. Nd4 {[%clk 0:01:15.7]} 20... Nc5 {[%clk
0:02:01.9]} 21. Bb4 {[%clk 0:01:09.2]} 21... a5 {[%clk 0:01:59.9]} 22. Bxc5
{[%clk 0:01:09.1]} 22... bxc5 {[%clk 0:01:59.6]} 23. Ne2 {[%clk 0:01:06.3]}
23... a4 {[%clk 0:01:54.9]} 24. Rab1 {[%clk 0:01:00.4]} 24... Rb8 {[%clk
0:01:54.3]} 25. Nc3 {[%clk 0:01:00.2]} 25... d4+ {[%clk 0:01:53.8]} 26. Kd2
{[%clk 0:01:00.2]} 26... dxc3+ {[%clk 0:01:53.6]} 27. Kxc3 {[%clk 0:01:01.1]}
27... Bd5 {[%clk 0:01:53.7]} 28. Bxd5 {[%clk 0:00:58.8]} 28... exd5 {[%clk
0:01:54.6]} 29. Rhd1 {[%clk 0:00:59.1]} 29... Rfd8 {[%clk 0:01:55.1]} 30. b4
{[%clk 0:00:52.8]} 30... axb3 {[%clk 0:01:52.4]} 31. cxb3 {[%clk 0:00:52.9]}
31... f6 {[%clk 0:01:48.3]} 32. b4 {[%clk 0:00:45.6]} 32... cxb4+ {[%clk
0:01:43.2]} 33. axb4 {[%clk 0:00:46.5]} 33... fxe5 {[%clk 0:01:40.9]} 34. fxe5
{[%clk 0:00:46.7]} 34... Kf7 {[%clk 0:01:41]} 35. b5 {[%clk 0:00:42.2]} 35...
Ke6 {[%clk 0:01:39.9]} 36. Kd4 {[%clk 0:00:42]} 36... Rdc8 {[%clk 0:01:33.5]}
37. b6 {[%clk 0:00:30.4]} 37... Bc5+ {[%clk 0:01:30.5]} 38. Kd3 {[%clk
0:00:30.8]} 38... Rxb6 {[%clk 0:01:30.3]} 39. Rxb6+ {[%clk 0:00:27]} 39... Bxb6
{[%clk 0:01:30.2]} 40. Rb1 {[%clk 0:00:27.6]} 40... Rc6 {[%clk 0:01:29.6]} 41.
Rf1 {[%clk 0:00:25]} 41... Bc7 {[%clk 0:01:27.8]} 42. Rf8 {[%clk 0:00:20.8]}
42... Bxe5 {[%clk 0:01:27.1]} 43. Rh8 {[%clk 0:00:21.6]} 43... h6 {[%clk
0:01:26.7]} 44. g4 {[%clk 0:00:20.9]} 44... Rc3+ {[%clk 0:01:25.1]} 45. Kd2
{[%clk 0:00:21.2]} 45... Rh3 {[%clk 0:01:25.2]} 46. g5 {[%clk 0:00:20.7]} 46...
Rxh2+ {[%clk 0:01:25.6]} 47. Kd3 {[%clk 0:00:21.3]} 47... hxg5 {[%clk
0:01:26.4]} 48. Re8+ {[%clk 0:00:20.8]} 48... Kf5 {[%clk 0:01:25.4]} 49. Rf8+
{[%clk 0:00:21]} 49... Bf6 {[%clk 0:01:25.4]} 50. Rd8 {[%clk 0:00:21.8]} 50...
Rh3+ {[%clk 0:01:25.3]} 0-1

[Event "Late-Titled-Tuesday-Blitz-February-27-2024"]
[Site "Chess.com"]
[Date "2024.02.27"]
[Round "3"]
[White "secretsuperstar7"]
[Black "Godzillator"]
[Result "0-1"]
[WhiteElo "2513"]
[BlackElo "2351"]
[TimeControl "180+1"]
[EndTime "14:27:59 PST"]
[Termination "Godzillator won by resignation"]

1. c4 {[%clk 0:02:56.9]} 1... Nf6 {[%clk 0:02:58.3]} 2. Nc3 {[%clk 0:02:56.9]}
2... e6 {[%clk 0:02:58.6]} 3. e4 {[%clk 0:02:57.3]} 3... d5 {[%clk 0:02:59]} 4.
e5 {[%clk 0:02:57.4]} 4... d4 {[%clk 0:02:59.5]} 5. exf6 {[%clk 0:02:57.9]} 5...
dxc3 {[%clk 0:02:59.9]} 6. bxc3 {[%clk 0:02:58.8]} 6... Qxf6 {[%clk 0:02:59.6]}
7. d4 {[%clk 0:02:59.1]} 7... c5 {[%clk 0:02:59.1]} 8. Nf3 {[%clk 0:02:58.8]}
8... h6 {[%clk 0:02:59.3]} 9. Be2 {[%clk 0:02:58.3]} 9... cxd4 {[%clk
0:02:58.8]} 10. cxd4 {[%clk 0:02:58.3]} 10... Bb4+ {[%clk 0:02:58.5]} 11. Bd2
{[%clk 0:02:58.6]} 11... Bxd2+ {[%clk 0:02:58.3]} 12. Qxd2 {[%clk 0:02:59.5]}
12... O-O {[%clk 0:02:57.8]} 13. O-O {[%clk 0:02:59.6]} 13... Nc6 {[%clk
0:02:58.2]} 14. Rfd1 {[%clk 0:02:58.6]} 14... Rd8 {[%clk 0:02:57.8]} 15. Qe3
{[%clk 0:02:58.4]} 15... b6 {[%clk 0:02:56.9]} 16. Ne5 {[%clk 0:02:52]} 16...
Nxe5 {[%clk 0:02:43.1]} 17. dxe5 {[%clk 0:02:51.8]} 17... Qe7 {[%clk 0:02:43]}
18. Rxd8+ {[%clk 0:02:38]} 18... Qxd8 {[%clk 0:02:41.3]} 19. Bf3 {[%clk
0:02:38.2]} 19... Rb8 {[%clk 0:02:40.7]} 20. Rd1 {[%clk 0:02:38]} 20... Qc7
{[%clk 0:02:40.5]} 21. Rd6 {[%clk 0:02:18.8]} 21... Ba6 {[%clk 0:02:36.3]} 22.
Rc6 {[%clk 0:02:03.6]} 22... Qe7 {[%clk 0:02:28.3]} 23. h3 {[%clk 0:01:42.5]}
23... Rd8 {[%clk 0:02:19.3]} 24. Qf4 {[%clk 0:01:11]} 24... Bb7 {[%clk
0:02:11.2]} 25. Rd6 {[%clk 0:01:10.2]} 25... Bxf3 {[%clk 0:02:10.6]} 26. Rxd8+
{[%clk 0:01:05.7]} 26... Qxd8 {[%clk 0:02:09.8]} 27. Qxf3 {[%clk 0:01:06.1]}
27... Qc7 {[%clk 0:02:08.1]} 28. Qa8+ {[%clk 0:01:03.5]} 28... Kh7 {[%clk
0:02:07.4]} 29. Qe4+ {[%clk 0:01:03.3]} 29... g6 {[%clk 0:02:07.5]} 30. Qd4
{[%clk 0:01:02.7]} 30... Kg7 {[%clk 0:02:04.2]} 31. Kf1 {[%clk 0:00:59.4]} 31...
Qc6 {[%clk 0:02:01.4]} 32. Qf4 {[%clk 0:00:56.3]} 32... Qa4 {[%clk 0:01:58.7]}
33. Qf6+ {[%clk 0:00:53.6]} 33... Kg8 {[%clk 0:01:58.7]} 34. Qd8+ {[%clk
0:00:45.3]} 34... Kh7 {[%clk 0:01:58.8]} 35. Qd4 {[%clk 0:00:18.5]} 35... Qxa2
{[%clk 0:01:55.1]} 36. g4 {[%clk 0:00:16.6]} 36... a5 {[%clk 0:01:40.1]} 37. Qf4
{[%clk 0:00:16]} 37... Kg8 {[%clk 0:01:37.8]} 38. h4 {[%clk 0:00:11.5]} 38... a4
{[%clk 0:01:37.3]} 39. h5 {[%clk 0:00:11.3]} 39... gxh5 {[%clk 0:01:32.8]} 40.
gxh5 {[%clk 0:00:11]} 40... a3 {[%clk 0:01:32.4]} 41. Qxh6 {[%clk 0:00:08.9]}
41... Qa1+ {[%clk 0:01:28.3]} 42. Kg2 {[%clk 0:00:08.2]} 42... Qxe5 {[%clk
0:01:28.2]} 43. Qc1 {[%clk 0:00:07.3]} 43... a2 {[%clk 0:01:21]} 44. h6 {[%clk
0:00:05.5]} 44... a1=Q {[%clk 0:01:18.9]} 0-1

[Event "Late-Titled-Tuesday-Blitz-February-27-2024"]
[Site "Chess.com"]
[Date "2024.02.27"]
[Round "3"]
[White "Sargsyan_Shant"]
[Black "MKlose11"]
[Result "1-0"]
[WhiteElo "2912"]
[BlackElo "2601"]
[TimeControl "180+1"]
[EndTime "14:28:03 PST"]
[Termination "Sargsyan_Shant won by checkmate"]

1. c4 {[%clk 0:03:00.1]} 1... Nf6 {[%clk 0:02:59.8]} 2. Nc3 {[%clk 0:02:56.2]}
2... c5 {[%clk 0:02:59.3]} 3. g3 {[%clk 0:02:55.9]} 3... Nc6 {[%clk 0:02:57]} 4.
Bg2 {[%clk 0:02:53.5]} 4... g6 {[%clk 0:02:54.7]} 5. Nf3 {[%clk 0:02:54]} 5...
d6 {[%clk 0:02:53.5]} 6. d4 {[%clk 0:02:51.1]} 6... cxd4 {[%clk 0:02:53]} 7.
Nxd4 {[%clk 0:02:52]} 7... Bd7 {[%clk 0:02:53.8]} 8. b3 {[%clk 0:02:52.5]} 8...
Bg7 {[%clk 0:02:52.4]} 9. Bb2 {[%clk 0:02:53]} 9... O-O {[%clk 0:02:51.3]} 10.
O-O {[%clk 0:02:53.6]} 10... Qa5 {[%clk 0:02:50.5]} 11. Qd2 {[%clk 0:02:47.3]}
11... Rfe8 {[%clk 0:02:50.1]} 12. Rfd1 {[%clk 0:02:47.6]} 12... Qh5 {[%clk
0:02:50]} 13. Nxc6 {[%clk 0:02:40.6]} 13... Bxc6 {[%clk 0:02:49.5]} 14. e4
{[%clk 0:02:40.7]} 14... a5 {[%clk 0:02:38.1]} 15. Re1 {[%clk 0:02:14.2]} 15...
Qc5 {[%clk 0:02:36.2]} 16. h3 {[%clk 0:02:09.1]} 16... a4 {[%clk 0:02:35.2]} 17.
Rad1 {[%clk 0:02:04.8]} 17... axb3 {[%clk 0:02:34.3]} 18. axb3 {[%clk
0:02:05.7]} 18... Nd7 {[%clk 0:02:25.7]} 19. Nd5 {[%clk 0:01:23.1]} 19... Bxd5
{[%clk 0:02:24.4]} 20. Bxg7 {[%clk 0:01:18.7]} 20... Kxg7 {[%clk 0:01:49.8]} 21.
exd5 {[%clk 0:01:19.1]} 21... b5 {[%clk 0:01:46.9]} 22. Rc1 {[%clk 0:01:14.1]}
22... bxc4 {[%clk 0:01:46.1]} 23. Rxc4 {[%clk 0:01:11.5]} 23... Qb6 {[%clk
0:01:44.3]} 24. Qb2+ {[%clk 0:01:10.3]} 24... Nf6 {[%clk 0:01:44.2]} 25. g4
{[%clk 0:01:09]} 25... h6 {[%clk 0:01:43.7]} 26. h4 {[%clk 0:01:09.2]} 26... Kg8
{[%clk 0:01:42.7]} 27. g5 {[%clk 0:01:09.4]} 27... hxg5 {[%clk 0:01:42.8]} 28.
hxg5 {[%clk 0:01:10.3]} 28... Nh5 {[%clk 0:01:41.8]} 29. Bf3 {[%clk 0:01:08]}
29... Ng7 {[%clk 0:01:35.7]} 30. Kg2 {[%clk 0:01:04.6]} 30... Rab8 {[%clk
0:01:34.8]} 31. Rh1 {[%clk 0:01:00.1]} 31... Qxb3 {[%clk 0:01:31.5]} 32. Rch4
{[%clk 0:00:59.2]} 32... Nh5 {[%clk 0:01:27.1]} 33. Qxb3 {[%clk 0:00:58.7]}
33... Rxb3 {[%clk 0:01:26.4]} 34. Bxh5 {[%clk 0:00:59.4]} 34... gxh5 {[%clk
0:01:27.3]} 35. Rxh5 {[%clk 0:01:00.3]} 35... Reb8 {[%clk 0:01:17.6]} 36. f3
{[%clk 0:00:55.1]} 36... R8b5 {[%clk 0:01:16.2]} 37. Kg3 {[%clk 0:00:52.8]}
37... Rxd5 {[%clk 0:01:14.5]} 38. Kg4 {[%clk 0:00:52.9]} 38... Rb4+ {[%clk
0:01:09.3]} 39. f4 {[%clk 0:00:52.4]} 39... e5 {[%clk 0:01:09.3]} 40. Rh8+
{[%clk 0:00:46.1]} 40... Kg7 {[%clk 0:01:06.1]} 41. R1h7+ {[%clk 0:00:47]} 41...
Kg6 {[%clk 0:01:06.5]} 42. Rh6+ {[%clk 0:00:47.7]} 42... Kg7 {[%clk 0:01:06.8]}
43. Kh5 {[%clk 0:00:47.8]} 43... Rxf4 {[%clk 0:00:43.5]} 44. R6h7# {[%clk
0:00:45.6]} 1-0

[Event "Late-Titled-Tuesday-Blitz-February-27-2024"]
[Site "Chess.com"]
[Date "2024.02.27"]
[Round "3"]
[White "Nf3c5"]
[Black "Christ_is_alive"]
[Result "1-0"]
[WhiteElo "2562"]
[BlackElo "2290"]
[TimeControl "180+1"]
[EndTime "14:28:07 PST"]
[Termination "Nf3c5 won by resignation"]

1. e4 {[%clk 0:02:55]} 1... c5 {[%clk 0:03:00]} 2. Nf3 {[%clk 0:02:54.6]} 2...
Nc6 {[%clk 0:03:00.6]} 3. c3 {[%clk 0:02:54.2]} 3... d5 {[%clk 0:02:59.9]} 4.
exd5 {[%clk 0:02:54]} 4... Qxd5 {[%clk 0:03:00.8]} 5. d4 {[%clk 0:02:54.1]} 5...
e6 {[%clk 0:03:01.4]} 6. Be3 {[%clk 0:02:48.6]} 6... Nf6 {[%clk 0:03:01.3]} 7.
Be2 {[%clk 0:02:36]} 7... cxd4 {[%clk 0:02:59]} 8. Nxd4 {[%clk 0:02:35.1]} 8...
Nxd4 {[%clk 0:02:51.7]} 9. Bxd4 {[%clk 0:02:21.7]} 9... Qxg2 {[%clk 0:02:21.7]}
10. Bf3 {[%clk 0:02:19]} 10... Qg5 {[%clk 0:01:51]} 11. Nd2 {[%clk 0:02:01.9]}
11... Bc5 {[%clk 0:01:46.4]} 12. Qa4+ {[%clk 0:01:37.1]} 12... Bd7 {[%clk
0:01:34.2]} 13. Qc4 {[%clk 0:01:35.5]} 13... Bxd4 {[%clk 0:01:23.7]} 14. Qxd4
{[%clk 0:01:33.8]} 14... O-O {[%clk 0:01:03.5]} 15. O-O-O {[%clk 0:01:27.2]}
15... Rfd8 {[%clk 0:01:02.2]} 16. Rhg1 {[%clk 0:01:20.5]} 16... Qf5 {[%clk
0:01:00.1]} 17. Ne4 {[%clk 0:01:11.2]} 17... Kh8 {[%clk 0:00:38.1]} 18. Nd6
{[%clk 0:00:31.5]} 18... Qxf3 {[%clk 0:00:33.5]} 19. Nxf7+ {[%clk 0:00:30.2]}
19... Kg8 {[%clk 0:00:33.8]} 20. Rg3 {[%clk 0:00:30.8]} 20... Qf5 {[%clk
0:00:20.4]} 21. Nh6+ {[%clk 0:00:30.6]} 21... Kh8 {[%clk 0:00:19]} 22. Nxf5
{[%clk 0:00:30.8]} 22... exf5 {[%clk 0:00:19.9]} 23. Rdg1 {[%clk 0:00:28.1]}
23... Rg8 {[%clk 0:00:16.1]} 24. Rxg7 {[%clk 0:00:22.2]} 24... Rxg7 {[%clk
0:00:17]} 25. Qxf6 {[%clk 0:00:22.3]} 25... Rg8 {[%clk 0:00:16.6]} 26. Rxg7
{[%clk 0:00:22.9]} 26... Rxg7 {[%clk 0:00:17.5]} 27. Qd8+ {[%clk 0:00:23.4]} 1-0

[Event "Late-Titled-Tuesday-Blitz-February-27-2024"]
[Site "Chess.com"]
[Date "2024.02.27"]
[Round "3"]
[White "1g60-1"]
[Black "CarlosjPineror"]
[Result "1/2-1/2"]
[WhiteElo "2297"]
[BlackElo "2544"]
[TimeControl "180+1"]
[EndTime "14:28:09 PST"]
[Termination "Game drawn by repetition"]

1. e4 {[%clk 0:03:00.9]} 1... c5 {[%clk 0:03:00.2]} 2. Nf3 {[%clk 0:03:00.8]}
2... e6 {[%clk 0:03:00.5]} 3. d4 {[%clk 0:03:00.1]} 3... cxd4 {[%clk 0:03:01.4]}
4. Nxd4 {[%clk 0:03:00.8]} 4... a6 {[%clk 0:03:01.9]} 5. Bd3 {[%clk 0:03:00.5]}
5... Qc7 {[%clk 0:03:02.2]} 6. Nc3 {[%clk 0:02:59.2]} 6... Nf6 {[%clk
0:03:02.5]} 7. O-O {[%clk 0:02:59]} 7... h5 {[%clk 0:03:02.3]} 8. Re1 {[%clk
0:02:49.5]} 8... Ng4 {[%clk 0:03:02.1]} 9. Nf3 {[%clk 0:02:45.1]} 9... Bc5
{[%clk 0:03:01.9]} 10. Re2 {[%clk 0:02:38.1]} 10... Nc6 {[%clk 0:03:00.8]} 11.
Nd5 {[%clk 0:02:29.7]} 11... Qb8 {[%clk 0:03:00]} 12. Bf4 {[%clk 0:02:28.1]}
12... Nge5 {[%clk 0:03:00.1]} 13. Nxe5 {[%clk 0:02:17.8]} 13... Nxe5 {[%clk
0:03:00.1]} 14. b4 {[%clk 0:02:11.7]} 14... Ba7 {[%clk 0:02:42.8]} 15. b5 {[%clk
0:01:54]} 15... exd5 {[%clk 0:02:26.2]} 16. Bxe5 {[%clk 0:01:54.2]} 16... Qxe5
{[%clk 0:01:58]} 17. exd5 {[%clk 0:01:53.2]} 17... d6 {[%clk 0:01:58.3]} 18.
Rxe5+ {[%clk 0:01:47.7]} 18... dxe5 {[%clk 0:01:59.2]} 19. Qe2 {[%clk
0:01:38.5]} 19... Bd4 {[%clk 0:01:56]} 20. Rb1 {[%clk 0:01:35.5]} 20... g6
{[%clk 0:01:52.4]} 21. Rb4 {[%clk 0:01:23.4]} 21... O-O {[%clk 0:01:50.2]} 22.
a4 {[%clk 0:01:11.2]} 22... Bg4 {[%clk 0:01:47.1]} 23. Qe1 {[%clk 0:01:08.3]}
23... a5 {[%clk 0:01:47]} 24. Rb1 {[%clk 0:01:06]} 24... b6 {[%clk 0:01:44.8]}
25. h3 {[%clk 0:01:05.7]} 25... Bd7 {[%clk 0:01:44.4]} 26. c3 {[%clk 0:01:05.1]}
26... Bc5 {[%clk 0:01:40.1]} 27. Qxe5 {[%clk 0:01:05.1]} 27... Rae8 {[%clk
0:01:13.2]} 28. Qf6 {[%clk 0:01:02.7]} 28... Kh7 {[%clk 0:01:13.4]} 29. Kf1
{[%clk 0:00:56.9]} 29... Rd8 {[%clk 0:00:49.7]} 30. Re1 {[%clk 0:00:53.3]} 30...
Rde8 {[%clk 0:00:44.6]} 31. Rxe8 {[%clk 0:00:47.9]} 31... Bxe8 {[%clk
0:00:45.1]} 32. g4 {[%clk 0:00:46.3]} 32... hxg4 {[%clk 0:00:43.5]} 33. hxg4
{[%clk 0:00:45.7]} 33... Bd7 {[%clk 0:00:42.8]} 34. f3 {[%clk 0:00:40.3]} 34...
Kg8 {[%clk 0:00:41.7]} 35. Kg2 {[%clk 0:00:38.9]} 35... Re8 {[%clk 0:00:41.2]}
36. Bxg6 {[%clk 0:00:30.5]} 36... fxg6 {[%clk 0:00:42.1]} 37. Qxg6+ {[%clk
0:00:30.4]} 37... Kf8 {[%clk 0:00:42]} 38. Qf6+ {[%clk 0:00:29.2]} 38... Kg8
{[%clk 0:00:42.2]} 39. Qg6+ {[%clk 0:00:27.9]} 39... Kf8 {[%clk 0:00:42.2]} 40.
Qf6+ {[%clk 0:00:25.8]} 40... Kg8 {[%clk 0:00:42.4]} 41. Qg6+ {[%clk 0:00:22.9]}
1/2-1/2

[Event "Late-Titled-Tuesday-Blitz-February-27-2024"]
[Site "Chess.com"]
[Date "2024.02.27"]
[Round "3"]
[White "MITerryble"]
[Black "jk13"]
[Result "1-0"]
[WhiteElo "3019"]
[BlackElo "2695"]
[TimeControl "180+1"]
[EndTime "14:28:16 PST"]
[Termination "MITerryble won by resignation"]

1. d4 {[%clk 0:02:47.2]} 1... Nf6 {[%clk 0:03:00.4]} 2. Bg5 {[%clk 0:02:46.5]}
2... Ne4 {[%clk 0:03:00.1]} 3. Bf4 {[%clk 0:02:43.9]} 3... Nc6 {[%clk
0:03:00.1]} 4. d5 {[%clk 0:02:40.7]} 4... e5 {[%clk 0:03:00.3]} 5. Be3 {[%clk
0:02:34.7]} 5... Ne7 {[%clk 0:02:57.4]} 6. Qd3 {[%clk 0:02:24.7]} 6... Nf6
{[%clk 0:02:52.9]} 7. c4 {[%clk 0:02:23.5]} 7... Ng6 {[%clk 0:02:48.4]} 8. Nc3
{[%clk 0:02:21.3]} 8... Bb4 {[%clk 0:02:46.9]} 9. a3 {[%clk 0:02:18.8]} 9...
Bxc3+ {[%clk 0:02:44.8]} 10. Qxc3 {[%clk 0:02:19.7]} 10... d6 {[%clk 0:02:44.8]}
11. g3 {[%clk 0:01:54.8]} 11... O-O {[%clk 0:02:21.5]} 12. Bg2 {[%clk 0:01:55]}
12... Bd7 {[%clk 0:02:21.1]} 13. h3 {[%clk 0:01:49.6]} 13... c6 {[%clk
0:02:18.6]} 14. dxc6 {[%clk 0:01:47]} 14... Bxc6 {[%clk 0:02:19.5]} 15. Nf3
{[%clk 0:01:27]} 15... Rc8 {[%clk 0:02:14.6]} 16. Qb4 {[%clk 0:01:15.4]} 16...
a5 {[%clk 0:02:04.6]} 17. Qb6 {[%clk 0:01:15.1]} 17... a4 {[%clk 0:01:53.3]} 18.
Rc1 {[%clk 0:01:01.8]} 18... Qe7 {[%clk 0:01:30]} 19. O-O {[%clk 0:00:59.9]}
19... Nd7 {[%clk 0:01:26]} 20. Qb4 {[%clk 0:01:00]} 20... Nc5 {[%clk 0:01:22.6]}
21. Rcd1 {[%clk 0:00:57.5]} 21... Rfd8 {[%clk 0:01:22]} 22. h4 {[%clk
0:00:49.1]} 22... h6 {[%clk 0:01:20.6]} 23. h5 {[%clk 0:00:47.7]} 23... Nf8
{[%clk 0:01:19.4]} 24. Nh4 {[%clk 0:00:48.2]} 24... Nfe6 {[%clk 0:01:06.3]} 25.
Bd5 {[%clk 0:00:34.7]} 25... Qf6 {[%clk 0:00:57.6]} 26. Rd2 {[%clk 0:00:31.6]}
26... Nd4 {[%clk 0:00:50.7]} 27. Bxd4 {[%clk 0:00:27.9]} 27... exd4 {[%clk
0:00:50.7]} 28. Rfd1 {[%clk 0:00:28.3]} 28... Re8 {[%clk 0:00:35.7]} 29. Rf1
{[%clk 0:00:11.9]} 29... Qg6 {[%clk 0:00:31.1]} 30. hxg6 {[%clk 0:00:11.2]} 1-0